[Event "Open Cappelle-la-Grande"]
[Date "2025.02.20"]
[White "Meillon, Judicael"]
[Black "Nikolov, Momchil"]
[WhiteElo "2321"]
[BlackElo "2433"]
[Round "8.8.16"]
[Result "1/2-1/2"]
[TimeControl "40/5400+30:1800+30"]

1. d4 {[%clk 1:30:58]} 1... Nf6 {[%clk 1:28:27]} 2. Bf4 {[%clk 1:31:21]} 2... d5
{[%clk 1:28:15]} 3. e3 {[%clk 1:31:45]} 3... c5 {[%clk 1:28:37]} 4. c3 {[%clk
1:32:12]} 4... Nc6 {[%clk 1:27:49]} 5. Nd2 {[%clk 1:32:36]} 5... Bf5 {[%clk
1:28:03]} 6. a4 {[%clk 1:31:36]} 6... e6 {[%clk 1:26:05]} 7. Ngf3 {[%clk
1:31:44]} 7... Be7 {[%clk 1:14:12]} 8. dxc5 {[%clk 1:29:16]} 8... Bxc5 {[%clk
1:14:27]} 9. Nd4 {[%clk 1:29:42]} 9... Nxd4 {[%clk 1:05:04]} 10. exd4 {[%clk
1:28:27]} 10... Bd6 {[%clk 1:02:15]} 11. Bb5+ {[%clk 1:26:56]} 11... Kf8 {[%clk
1:02:19]} 12. Qf3 {[%clk 1:15:54]} 12... h6 {[%clk 0:58:24]} 13. O-O {[%clk
1:12:19]} 13... Kg8 {[%clk 0:58:17]} 14. Rfe1 {[%clk 1:03:14]} 14... Kh7 {[%clk
0:57:36]} 15. Bd3 {[%clk 1:03:00]} 15... Bxd3 {[%clk 0:57:13]} 16. Qxd3+ {[%clk
1:03:13]} 16... g6 {[%clk 0:56:47]} 17. Be5 {[%clk 1:01:19]} 17... Bxe5 {[%clk
0:56:45]} 18. dxe5 {[%clk 0:50:20]} 18... Nd7 {[%clk 0:52:53]} 19. a5 {[%clk
0:45:16]} 19... Nc5 {[%clk 0:36:02]} 20. Qd4 {[%clk 0:40:26]} 20... Qe7 {[%clk
0:35:58]} 21. Re3 {[%clk 0:37:48]} 21... Kg7 {[%clk 0:31:31]} 22. Qf4 {[%clk
0:33:22]} 22... Rac8 {[%clk 0:29:25]} 23. Qd4 {[%clk 0:31:24]} 23... Ra8 {[%clk
0:24:46]} 24. Qf4 {[%clk 0:31:43]} 24... Rac8 {[%clk 0:24:34]} 25. Qd4 {[%clk
0:31:25]} 1/2-1/2

[Variant "Standard"]
[Site "Europe Echecs"]

[Event "Open Cappelle-la-Grande"]
[Date "2025.02.20"]
[White "Bournel, Antoine"]
[Black "Boumrar, Ayrad"]
[WhiteElo "2432"]
[BlackElo "2194"]
[Round "8.8.17"]
[Result "1-0"]
[TimeControl "40/5400+30:1800+30"]

1. d4 {[%clk 1:30:43]} 1... Nf6 {[%clk 1:30:53]} 2. c4 {[%clk 1:30:35]} 2... e6
{[%clk 1:31:13]} 3. Nc3 {[%clk 1:29:45]} 3... Bb4 {[%clk 1:31:27]} 4. Qc2 {[%clk
1:28:25]} 4... d5 {[%clk 1:31:40]} 5. cxd5 {[%clk 1:27:14]} 5... exd5 {[%clk
1:32:00]} 6. Bf4 {[%clk 1:26:00]} 6... O-O {[%clk 1:30:42]} 7. e3 {[%clk
1:19:27]} 7... c5 {[%clk 1:25:12]} 8. dxc5 {[%clk 1:19:00]} 8... Be6 {[%clk
1:25:21]} 9. Nf3 {[%clk 1:15:46]} 9... Nbd7 {[%clk 1:23:48]} 10. Bd6 {[%clk
0:44:13]} 10... Re8 {[%clk 1:21:51]} 11. Bd3 {[%clk 0:37:02]} 11... Nxc5 {[%clk
1:19:08]} 12. Bxc5 {[%clk 0:37:30]} 12... Bxc5 {[%clk 1:19:30]} 13. O-O {[%clk
0:37:29]} 13... Bg4 {[%clk 1:10:49]} 14. Be2 {[%clk 0:35:28]} 14... Qe7 {[%clk
1:07:01]} 15. Rad1 {[%clk 0:34:22]} 15... Rad8 {[%clk 1:02:20]} 16. Nd4 {[%clk
0:34:30]} 16... Bxe2 {[%clk 1:02:22]} 17. Ncxe2 {[%clk 0:32:56]} 17... g6 {[%clk
0:58:02]} 18. Qb3 {[%clk 0:29:15]} 18... Bd6 {[%clk 0:53:31]} 19. Nf3 {[%clk
0:29:05]} 19... Rd7 {[%clk 0:42:19]} 20. Rd3 {[%clk 0:24:44]} 20... Red8 {[%clk
0:40:41]} 21. Nc3 {[%clk 0:24:10]} 21... Bb8 {[%clk 0:39:56]} 22. Rfd1 {[%clk
0:21:50]} 22... Qe6 {[%clk 0:39:00]} 23. Qa4 {[%clk 0:20:10]} 23... a6 {[%clk
0:36:26]} 24. Qb3 {[%clk 0:19:54]} 24... h6 {[%clk 0:33:05]} 25. Na4 {[%clk
0:18:20]} 25... Ba7 {[%clk 0:32:07]} 26. Nc3 {[%clk 0:17:57]} 26... Bb8 {[%clk
0:31:35]} 27. h3 {[%clk 0:16:01]} 27... Kg7 {[%clk 0:30:34]} 28. Na4 {[%clk
0:15:18]} 28... Ba7 {[%clk 0:30:44]} 29. Nc3 {[%clk 0:14:33]} 29... Bb8 {[%clk
0:30:54]} 30. Na4 {[%clk 0:13:10]} 30... Ba7 {[%clk 0:27:34]} 31. Nd4 {[%clk
0:13:23]} 31... Qe5 {[%clk 0:23:26]} 32. Qb4 {[%clk 0:09:26]} 32... Ne4 {[%clk
0:20:17]} 33. Nf3 {[%clk 0:09:20]} 33... Qe6 {[%clk 0:19:43]} 34. Nc3 {[%clk
0:08:28]} 34... Nf6 {[%clk 0:17:33]} 35. Qa4 {[%clk 0:07:38]} 35... Bb6 {[%clk
0:15:31]} 36. Ne2 {[%clk 0:07:19]} 36... Bc7 {[%clk 0:14:30]} 37. Rd4 {[%clk
0:05:26]} 37... Ne4 {[%clk 0:12:14]} 38. Qb3 {[%clk 0:05:00]} 38... Kg8 {[%clk
0:11:47]} 39. Kf1 {[%clk 0:04:19]} 39... Bb8 {[%clk 0:11:29]} 40. Rb4 {[%clk
0:00:41]} 40... b5 {[%clk 0:09:49]} 41. Rbd4 {[%clk 0:26:31]} 41... Qf5 {[%clk
0:27:13]} 42. Nc3 {[%clk 0:21:59]} 42... Nf6 {[%clk 0:25:38]} 43. R4d3 {[%clk
0:20:18]} 43... Kg7 {[%clk 0:20:56]} 44. Nd4 {[%clk 0:17:50]} 44... Qh5 {[%clk
0:16:19]} 45. Nc6 {[%clk 0:16:52]} 45... Rc8 {[%clk 0:16:06]} 46. Nxd5 {[%clk
0:12:44]} 46... Ne4 {[%clk 0:13:54]} 47. Nf4 {[%clk 0:08:20]} 47... Qh4 {[%clk
0:07:48]} 48. g3 {[%clk 0:08:39]} 48... Qf6 {[%clk 0:07:40]} 49. Nxb8 {[%clk
0:07:01]} 49... Rdc7 {[%clk 0:07:01]} 50. Nd7 {[%clk 0:05:47]} 50... Qf5 {[%clk
0:07:25]} 51. Rd5 {[%clk 0:03:47]} 51... Rc1 {[%clk 0:05:07]} 52. Rxf5 {[%clk
0:03:03]} 52... Nd2+ {[%clk 0:05:32]} 53. Kg2 {[%clk 0:03:13]} 53... Nxb3 {[%clk
0:05:56]} 54. Rfd5 {[%clk 0:03:28]} 1-0

[Variant "Standard"]
[Site "Europe Echecs"]

[Event "Open Cappelle-la-Grande"]
[Date "2025.02.21"]
[White "Boyer, Mahel"]
[Black "Iniyan, Pa"]
[WhiteElo "2509"]
[BlackElo "2523"]
[Round "9.9.1"]
[Result "1/2-1/2"]
[TimeControl "40/5400+30:1800+30"]

1. Nf3 {[%clk 1:30:54]} 1... d5 {[%clk 1:30:38]} 2. g3 {[%clk 1:30:47]} 2... Nf6
{[%clk 1:30:56]} 3. Bg2 {[%clk 1:31:12]} 3... c6 {[%clk 1:30:59]} 4. O-O {[%clk
1:31:22]} 4... Bf5 {[%clk 1:31:07]} 5. d3 {[%clk 1:31:14]} 5... Nbd7 {[%clk
1:31:25]} 6. Nh4 {[%clk 1:23:15]} 6... Bg6 {[%clk 1:27:08]} 7. Nxg6 {[%clk
1:19:18]} 7... hxg6 {[%clk 1:27:32]} 8. e4 {[%clk 1:19:29]} 8... dxe4 {[%clk
1:24:05]} 9. dxe4 {[%clk 1:14:01]} 9... e5 {[%clk 1:24:17]} 10. Qe2 {[%clk
1:08:01]} 10... Bc5 {[%clk 1:24:17]} 11. Nd2 {[%clk 1:01:55]} 11... Qe7 {[%clk
1:24:34]} 12. Nb3 {[%clk 0:57:37]} 12... Bb6 {[%clk 1:24:55]} 13. a4 {[%clk
0:57:23]} 13... a5 {[%clk 1:24:58]} 14. Qc4 {[%clk 0:53:48]} 14... Nc5 {[%clk
1:24:03]} 15. Nxc5 {[%clk 0:51:59]} 15... Qxc5 {[%clk 1:24:24]} 16. Qxc5 {[%clk
0:50:26]} 16... Bxc5 {[%clk 1:24:47]} 17. Bf3 {[%clk 0:47:20]} 17... O-O-O
{[%clk 1:24:06]} 18. c3 {[%clk 0:46:24]} 18... Ne8 {[%clk 1:23:34]} 19. Rd1
{[%clk 0:45:10]} 19... Rxd1+ {[%clk 1:23:56]} 20. Bxd1 {[%clk 0:45:35]} 20...
Nd6 {[%clk 1:24:19]} 21. Bf3 {[%clk 0:45:20]} 21... Kc7 {[%clk 1:24:32]} 22. h4
{[%clk 0:44:32]} 1/2-1/2

[Variant "Standard"]
[Site "Europe Echecs"]

[Event "Open Cappelle-la-Grande"]
[Date "2025.02.21"]
[White "Girel, Joseph"]
[Black "Abergel, Thal"]
[WhiteElo "2484"]
[BlackElo "2419"]
[Round "9.9.2"]
[Result "1-0"]
[TimeControl "40/5400+30:1800+30"]

1. d4 {[%clk 1:28:56]} 1... Nf6 {[%clk 1:30:40]} 2. c4 {[%clk 1:28:31]} 2... e6
{[%clk 1:30:58]} 3. Nf3 {[%clk 1:28:29]} 3... b6 {[%clk 1:30:35]} 4. g3 {[%clk
1:28:16]} 4... Bb7 {[%clk 1:30:54]} 5. Bg2 {[%clk 1:28:27]} 5... Be7 {[%clk
1:31:13]} 6. O-O {[%clk 1:28:19]} 6... O-O {[%clk 1:31:19]} 7. h4 {[%clk
1:28:10]} 7... c6 {[%clk 1:31:27]} 8. Nc3 {[%clk 1:21:16]} 8... d5 {[%clk
1:31:23]} 9. Qd3 {[%clk 1:15:58]} 9... a5 {[%clk 1:28:15]} 10. b3 {[%clk
1:15:27]} 10... Na6 {[%clk 1:25:54]} 11. Bb2 {[%clk 1:11:40]} 11... a4 {[%clk
1:19:30]} 12. Nxa4 {[%clk 1:06:48]} 12... Nb4 {[%clk 1:13:54]} 13. Qd1 {[%clk
1:06:34]} 13... dxc4 {[%clk 1:14:03]} 14. bxc4 {[%clk 0:58:58]} 14... b5 {[%clk
1:12:50]} 15. Nc5 {[%clk 0:56:29]} 15... Bxc5 {[%clk 1:12:39]} 16. dxc5 {[%clk
0:56:55]} 16... Qxd1 {[%clk 1:11:14]} 17. Rfxd1 {[%clk 0:56:44]} 17... Nxa2
{[%clk 1:00:17]} 18. Ne5 {[%clk 0:50:59]} 18... bxc4 {[%clk 1:00:12]} 19. Nxc4
{[%clk 0:48:43]} 19... Nd5 {[%clk 0:59:09]} 20. e4 {[%clk 0:38:52]} 20... Ndc3
{[%clk 0:51:41]} 21. Rd2 {[%clk 0:36:51]} 21... Ra4 {[%clk 0:37:04]} 22. Nb6
{[%clk 0:32:43]} 22... Rb4 {[%clk 0:36:14]} 23. Rc2 {[%clk 0:28:24]} 23... Rb3
{[%clk 0:35:47]} 24. Bf1 {[%clk 0:28:25]} 24... Nb4 {[%clk 0:35:22]} 25. Rxc3
{[%clk 0:28:36]} 25... Rxb2 {[%clk 0:35:48]} 26. Nc4 {[%clk 0:25:31]} 26... Ra2
{[%clk 0:31:21]} 27. Rb1 {[%clk 0:23:05]} 27... Na6 {[%clk 0:31:13]} 28. Rxb7
{[%clk 0:22:35]} 28... Nxc5 {[%clk 0:31:39]} 29. Rb2 {[%clk 0:20:27]} 29... Ra1
{[%clk 0:31:41]} 30. Re3 {[%clk 0:19:23]} 30... g6 {[%clk 0:31:42]} 31. e5
{[%clk 0:17:59]} 31... Rc1 {[%clk 0:30:49]} 32. Kg2 {[%clk 0:16:52]} 32... Ra8
{[%clk 0:30:53]} 33. Nd6 {[%clk 0:16:30]} 33... Kg7 {[%clk 0:25:50]} 34. Rb6
{[%clk 0:13:45]} 34... Nd7 {[%clk 0:25:13]} 35. Rb7 {[%clk 0:13:59]} 35... Rd8
{[%clk 0:25:29]} 36. Rf3 {[%clk 0:13:46]} 36... Nxe5 {[%clk 0:25:29]} 37. Nxf7
{[%clk 0:14:06]} 37... Rd7 {[%clk 0:25:53]} 38. Rxd7 {[%clk 0:14:18]} 38... Nxd7
{[%clk 0:26:20]} 39. Ng5 {[%clk 0:12:33]} 1-0

[Variant "Standard"]
[Site "Europe Echecs"]

[Event "Open Cappelle-la-Grande"]
[Date "2025.02.21"]
[White "Dionisi, Thomas"]
[Black "Karthik Venkataraman"]
[WhiteElo "2400"]
[BlackElo "2600"]
[Round "9.9.3"]
[Result "1-0"]
[TimeControl "40/5400+30:1800+30"]

1. e4 {[%clk 1:30:55]} 1... c5 {[%clk 1:30:54]} 2. Nf3 {[%clk 1:31:19]} 2... Nc6
{[%clk 1:31:19]} 3. Bb5 {[%clk 1:31:43]} 3... g6 {[%clk 1:31:45]} 4. Bxc6 {[%clk
1:32:03]} 4... dxc6 {[%clk 1:32:09]} 5. d3 {[%clk 1:32:25]} 5... Qc7 {[%clk
1:32:33]} 6. a4 {[%clk 1:32:27]} 6... e5 {[%clk 1:32:30]} 7. a5 {[%clk 1:31:02]}
7... Nf6 {[%clk 1:32:33]} 8. Qd2 {[%clk 1:26:33]} 8... Nh5 {[%clk 1:25:51]} 9.
Qc3 {[%clk 1:24:51]} 9... f6 {[%clk 1:26:07]} 10. Be3 {[%clk 1:15:26]} 10... Qe7
{[%clk 1:26:15]} 11. a6 {[%clk 1:06:11]} 11... b6 {[%clk 1:24:48]} 12. b4 {[%clk
1:02:26]} 12... c4 {[%clk 1:21:23]} 13. Qxc4 {[%clk 1:00:08]} 13... Qxb4+ {[%clk
1:21:45]} 14. Nbd2 {[%clk 1:00:31]} 14... Qxc4 {[%clk 1:21:00]} 15. Nxc4 {[%clk
1:00:57]} 15... Be6 {[%clk 1:21:24]} 16. Nfd2 {[%clk 0:58:39]} 16... Bb4 {[%clk
1:16:37]} 17. O-O {[%clk 0:57:54]} 17... Nf4 {[%clk 1:15:51]} 18. Rfb1 {[%clk
0:37:42]} 18... c5 {[%clk 1:14:03]} 19. Kf1 {[%clk 0:34:37]} 19... O-O-O {[%clk
1:08:25]} 20. Rc1 {[%clk 0:30:18]} 20... Bc3 {[%clk 1:01:14]} 21. Ra3 {[%clk
0:30:08]} 21... Bd4 {[%clk 0:59:29]} 22. Bxf4 {[%clk 0:27:13]} 22... exf4 {[%clk
0:59:57]} 23. c3 {[%clk 0:27:18]} 23... Be5 {[%clk 1:00:10]} 24. d4 {[%clk
0:25:11]} 24... Bc7 {[%clk 1:00:22]} 25. d5 {[%clk 0:22:15]} 25... Bd7 {[%clk
0:59:31]} 26. Rb3 {[%clk 0:22:00]} 26... Rde8 {[%clk 0:53:46]} 27. f3 {[%clk
0:21:54]} 27... g5 {[%clk 0:53:40]} 28. Re1 {[%clk 0:19:06]} 28... Ba4 {[%clk
0:39:26]} 29. Rb2 {[%clk 0:17:52]} 29... Rd8 {[%clk 0:37:08]} 30. Na3 {[%clk
0:16:03]} 30... Be5 {[%clk 0:31:25]} 31. Rc1 {[%clk 0:16:25]} 31... f5 {[%clk
0:31:49]} 32. Ndc4 {[%clk 0:13:13]} 32... Bc7 {[%clk 0:32:18]} 33. Nb5 {[%clk
0:11:57]} 33... Bxb5 {[%clk 0:32:38]} 34. Rxb5 {[%clk 0:12:26]} 34... fxe4
{[%clk 0:33:01]} 35. fxe4 {[%clk 0:12:50]} 35... Rhe8 {[%clk 0:33:27]} 36. Re1
{[%clk 0:12:48]} 36... Be5 {[%clk 0:33:51]} 37. Rb3 {[%clk 0:09:26]} 37... Rd7
{[%clk 0:30:35]} 38. Kf2 {[%clk 0:01:54]} 38... g4 {[%clk 0:30:20]} 39. h3
{[%clk 0:00:39]} 39... h5 {[%clk 0:30:48]} 40. hxg4 {[%clk 0:00:37]} 40... hxg4
{[%clk 0:31:11]} 41. Rh1 {[%clk 0:22:30]} 41... Bg7 {[%clk 0:59:49]} 42. Rxb6
{[%clk 0:18:25]} 42... axb6 {[%clk 0:58:15]} 43. Nxb6+ {[%clk 0:18:53]} 43...
Kc7 {[%clk 0:58:40]} 44. Nxd7 {[%clk 0:19:19]} 44... Bxc3 {[%clk 0:59:06]} 45.
Rh7 {[%clk 0:17:27]} 45... Bd4+ {[%clk 0:59:30]} 46. Kf1 {[%clk 0:16:08]} 46...
Ra8 {[%clk 0:59:40]} 47. Nxc5+ {[%clk 0:14:56]} 47... Kb6 {[%clk 0:59:28]} 48.
Ne6 {[%clk 0:14:08]} 48... Be5 {[%clk 0:58:03]} 49. a7 {[%clk 0:13:16]} 49...
Rxa7 {[%clk 0:53:16]} 50. Rxa7 {[%clk 0:13:39]} 50... Kxa7 {[%clk 0:53:43]} 51.
Nc5 {[%clk 0:07:20]} 51... Bd4 {[%clk 0:52:08]} 52. Nd3 {[%clk 0:06:33]} 52...
Be3 {[%clk 0:52:33]} 53. Ne5 {[%clk 0:06:08]} 53... f3 {[%clk 0:52:21]} 54. Nxg4
{[%clk 0:06:24]} 54... fxg2+ {[%clk 0:52:44]} 55. Kxg2 {[%clk 0:06:52]} 55...
Bg5 {[%clk 0:53:05]} 56. Kf3 {[%clk 0:07:14]} 56... Kb6 {[%clk 0:53:31]} 57. e5
{[%clk 0:07:17]} 57... Kc5 {[%clk 0:53:52]} 58. Ke4 {[%clk 0:07:44]} 58... Bh4
{[%clk 0:54:05]} 59. Ne3 {[%clk 0:07:43]} 59... Bg5 {[%clk 0:54:21]} 60. Nf5
{[%clk 0:08:06]} 60... Bd8 {[%clk 0:54:44]} 61. e6 {[%clk 0:08:03]} 1-0

[Variant "Standard"]
[Site "Europe Echecs"]

[Event "Open Cappelle-la-Grande"]
[Date "2025.02.21"]
[White "Pranesh M"]
[Black "Sorensen, Hampus"]
[WhiteElo "2586"]
[BlackElo "2430"]
[Round "9.9.4"]
[Result "1-0"]
[TimeControl "40/5400+30:1800+30"]

1. e4 {[%clk 1:30:55]} 1... e5 {[%clk 1:30:36]} 2. Nf3 {[%clk 1:31:16]} 2... Nc6
{[%clk 1:30:09]} 3. Bc4 {[%clk 1:31:37]} 3... Nf6 {[%clk 1:30:23]} 4. d3 {[%clk
1:31:58]} 4... d5 {[%clk 1:30:02]} 5. exd5 {[%clk 1:32:17]} 5... Nxd5 {[%clk
1:30:27]} 6. O-O {[%clk 1:32:08]} 6... Nb6 {[%clk 1:30:49]} 7. Bb5 {[%clk
1:31:49]} 7... Bd6 {[%clk 1:31:03]} 8. Bxc6+ {[%clk 1:31:29]} 8... bxc6 {[%clk
1:31:31]} 9. Nxe5 {[%clk 1:31:03]} 9... Bxe5 {[%clk 1:31:38]} 10. Re1 {[%clk
1:31:28]} 10... Qe7 {[%clk 1:29:54]} 11. f4 {[%clk 1:30:07]} 11... Bd4+ {[%clk
1:27:48]} 12. Kh1 {[%clk 1:30:02]} 12... Be6 {[%clk 1:28:10]} 13. f5 {[%clk
1:30:12]} 13... O-O {[%clk 1:27:11]} 14. fxe6 {[%clk 1:26:30]} 14... fxe6 {[%clk
1:27:12]} 15. Nd2 {[%clk 1:26:30]} 15... Nd5 {[%clk 1:15:08]} 16. Nf3 {[%clk
1:24:18]} 16... c5 {[%clk 1:08:04]} 17. c3 {[%clk 1:19:00]} 17... Bf6 {[%clk
1:04:56]} 18. Bd2 {[%clk 1:11:24]} 18... Rab8 {[%clk 1:00:01]} 19. Qc2 {[%clk
1:04:44]} 19... Rb6 {[%clk 0:59:10]} 20. Rad1 {[%clk 1:04:21]} 20... Qf7 {[%clk
0:48:06]} 21. Re4 {[%clk 1:02:16]} 21... Rd8 {[%clk 0:41:56]} 22. Rde1 {[%clk
0:59:05]} 22... Rbd6 {[%clk 0:40:07]} 23. Qa4 {[%clk 0:56:41]} 23... Nb6 {[%clk
0:27:02]} 24. Qxa7 {[%clk 0:49:09]} 24... Rxd3 {[%clk 0:27:02]} 25. Be3 {[%clk
0:43:34]} 25... R3d5 {[%clk 0:20:59]} 26. Bf4 {[%clk 0:41:14]} 26... R5d7 {[%clk
0:17:16]} 27. Qb7 {[%clk 0:39:53]} 27... Nd5 {[%clk 0:16:19]} 28. Bg3 {[%clk
0:39:36]} 28... Ne7 {[%clk 0:15:17]} 29. Rxe6 {[%clk 0:37:33]} 29... Nf5 {[%clk
0:11:16]} 30. Bf2 {[%clk 0:36:26]} 30... Rd6 {[%clk 0:11:27]} 31. Rxd6 {[%clk
0:35:04]} 31... cxd6 {[%clk 0:11:20]} 32. Qe4 {[%clk 0:34:33]} 32... Ne7 {[%clk
0:07:27]} 33. a4 {[%clk 0:33:38]} 33... Qd5 {[%clk 0:06:29]} 34. Qe2 {[%clk
0:33:01]} 34... Qb3 {[%clk 0:03:59]} 35. a5 {[%clk 0:31:24]} 35... Ra8 {[%clk
0:02:52]} 36. Ra1 {[%clk 0:30:47]} 36... h6 {[%clk 0:01:59]} 37. a6 {[%clk
0:30:24]} 37... Kh8 {[%clk 0:02:16]} 38. Bg3 {[%clk 0:29:38]} 38... Nf5 {[%clk
0:02:11]} 39. Bf4 {[%clk 0:29:46]} 39... Qd5 {[%clk 0:01:59]} 40. Qb5 {[%clk
0:30:04]} 40... Qe4 {[%clk 0:01:36]} 41. Qb7 {[%clk 0:29:51]} 1-0

[Variant "Standard"]
[Site "Europe Echecs"]

[Event "Open Cappelle-la-Grande"]
[Date "2025.02.21"]
[White "Tahay, Alexis"]
[Black "Bauer, Christian"]
[WhiteElo "2386"]
[BlackElo "2548"]
[Round "9.9.5"]
[Result "0-1"]
[TimeControl "40/5400+30:1800+30"]

1. e4 {[%clk 1:30:52]} 1... g6 {[%clk 1:28:12]} 2. d4 {[%clk 1:31:09]} 2... Bg7
{[%clk 1:28:40]} 3. Nf3 {[%clk 1:29:42]} 3... d6 {[%clk 1:29:06]} 4. Be2 {[%clk
1:30:07]} 4... c5 {[%clk 1:28:52]} 5. d5 {[%clk 1:29:55]} 5... Nf6 {[%clk
1:29:02]} 6. Nc3 {[%clk 1:30:20]} 6... O-O {[%clk 1:29:17]} 7. O-O {[%clk
1:30:47]} 7... Na6 {[%clk 1:27:34]} 8. Bf4 {[%clk 1:28:18]} 8... Nc7 {[%clk
1:20:26]} 9. a4 {[%clk 1:25:55]} 9... Bg4 {[%clk 1:18:17]} 10. h3 {[%clk
1:21:23]} 10... Bxf3 {[%clk 1:18:42]} 11. Bxf3 {[%clk 1:21:47]} 11... Nd7 {[%clk
1:18:56]} 12. Qd2 {[%clk 1:14:55]} 12... a6 {[%clk 1:19:19]} 13. Be2 {[%clk
1:13:51]} 13... Rb8 {[%clk 1:13:51]} 14. a5 {[%clk 1:05:48]} 14... b5 {[%clk
1:12:19]} 15. axb6 {[%clk 1:06:15]} 15... Rxb6 {[%clk 1:12:41]} 16. Na4 {[%clk
1:03:36]} 16... Rb4 {[%clk 1:07:44]} 17. c3 {[%clk 0:58:58]} 17... Rxe4 {[%clk
1:02:53]} 18. Bf3 {[%clk 0:57:35]} 18... Rxf4 {[%clk 0:57:18]} 19. Qxf4 {[%clk
0:57:51]} 19... Ne5 {[%clk 0:54:52]} 20. Rfd1 {[%clk 0:50:59]} 20... e6 {[%clk
0:38:27]} 21. c4 {[%clk 0:45:32]} 21... Qb8 {[%clk 0:37:14]} 22. Be2 {[%clk
0:41:55]} 22... Re8 {[%clk 0:35:30]} 23. Bf1 {[%clk 0:38:37]} 23... exd5 {[%clk
0:31:31]} 24. cxd5 {[%clk 0:39:05]} 24... Qb3 {[%clk 0:30:48]} 25. Qd2 {[%clk
0:33:45]} 25... Nd7 {[%clk 0:15:14]} 26. Nc3 {[%clk 0:25:18]} 26... Rb8 {[%clk
0:14:47]} 27. Ne4 {[%clk 0:23:30]} 27... Qb6 {[%clk 0:12:33]} 28. Rab1 {[%clk
0:18:00]} 28... Nf6 {[%clk 0:08:31]} 29. Nc3 {[%clk 0:15:31]} 29... Qb4 {[%clk
0:08:31]} 30. Qd3 {[%clk 0:14:38]} 30... Nd7 {[%clk 0:08:15]} 31. Re1 {[%clk
0:11:22]} 31... Be5 {[%clk 0:08:02]} 32. Qc4 {[%clk 0:07:39]} 32... Nf6 {[%clk
0:04:07]} 33. Ne4 {[%clk 0:05:33]} 33... Ncxd5 {[%clk 0:03:30]} 34. Nxf6+ {[%clk
0:04:55]} 34... Nxf6 {[%clk 0:03:54]} 35. Qxa6 {[%clk 0:05:03]} 35... Kg7 {[%clk
0:03:20]} 36. b3 {[%clk 0:05:05]} 36... h5 {[%clk 0:02:12]} 37. Qc4 {[%clk
0:04:42]} 37... Qa5 {[%clk 0:01:53]} 38. Qa4 {[%clk 0:02:58]} 38... Qd2 {[%clk
0:01:59]} 39. Bc4 {[%clk 0:02:35]} 39... Qf4 {[%clk 0:01:06]} 40. g3 {[%clk
0:01:27]} 40... Qf5 {[%clk 0:01:08]} 41. Qa7 {[%clk 0:29:40]} 41... Rf8 {[%clk
0:29:12]} 42. Kg2 {[%clk 0:26:27]} 42... h4 {[%clk 0:24:12]} 43. Be2 {[%clk
0:15:54]} 43... hxg3 {[%clk 0:19:10]} 44. fxg3 {[%clk 0:16:22]} 44... Qg5 {[%clk
0:16:25]} 45. g4 {[%clk 0:08:50]} 45... Qf4 {[%clk 0:16:22]} 46. Qb7 {[%clk
0:07:23]} 46... Ne4 {[%clk 0:11:23]} 0-1

[Variant "Standard"]
[Site "Europe Echecs"]

[Event "Open Cappelle-la-Grande"]
[Date "2025.02.21"]
[White "Raja Rithvik R"]
[Black "Bacrot, Alexandre"]
[WhiteElo "2522"]
[BlackElo "2423"]
[Round "9.9.6"]
[Result "1-0"]
[TimeControl "40/5400+30:1800+30"]

1. e4 {[%clk 1:30:56]} 1... e5 {[%clk 1:29:59]} 2. Nf3 {[%clk 1:31:20]} 2... Nc6
{[%clk 1:30:26]} 3. Bb5 {[%clk 1:31:15]} 3... a6 {[%clk 1:30:32]} 4. Ba4 {[%clk
1:31:34]} 4... Nge7 {[%clk 1:30:58]} 5. Nc3 {[%clk 1:27:45]} 5... g6 {[%clk
1:30:36]} 6. d4 {[%clk 1:25:57]} 6... exd4 {[%clk 1:30:47]} 7. Nd5 {[%clk
1:25:36]} 7... Bg7 {[%clk 1:27:37]} 8. Bg5 {[%clk 1:25:17]} 8... h6 {[%clk
1:28:03]} 9. Bf6 {[%clk 1:25:20]} 9... Kf8 {[%clk 1:23:15]} 10. Bxg7+ {[%clk
1:23:32]} 10... Kxg7 {[%clk 1:22:55]} 11. Bxc6 {[%clk 1:23:35]} 11... Nxc6
{[%clk 1:22:40]} 12. Qd3 {[%clk 1:24:02]} 12... d6 {[%clk 1:21:28]} 13. Nxd4
{[%clk 1:22:42]} 13... Ne5 {[%clk 1:18:45]} 14. Qc3 {[%clk 1:22:35]} 14... c6
{[%clk 1:19:00]} 15. Ne3 {[%clk 1:23:02]} 15... f6 {[%clk 1:04:50]} 16. O-O-O
{[%clk 1:07:16]} 16... Re8 {[%clk 1:03:43]} 17. h4 {[%clk 1:05:17]} 17... h5
{[%clk 1:02:24]} 18. f3 {[%clk 1:04:12]} 18... Qe7 {[%clk 1:01:20]} 19. Kb1
{[%clk 0:47:23]} 19... Bd7 {[%clk 1:00:41]} 20. g4 {[%clk 0:30:44]} 20... hxg4
{[%clk 0:58:59]} 21. h5 {[%clk 0:26:17]} 21... c5 {[%clk 0:58:43]} 22. Ne2
{[%clk 0:25:29]} 22... Nxf3 {[%clk 0:57:20]} 23. hxg6 {[%clk 0:25:25]} 23... Rh8
{[%clk 0:54:15]} 24. Nd5 {[%clk 0:18:26]} 24... Qe5 {[%clk 0:52:09]} 25. Nb6
{[%clk 0:18:39]} 25... Qxc3 {[%clk 0:51:54]} 26. bxc3 {[%clk 0:18:52]} 26...
Rae8 {[%clk 0:20:44]} 27. Rxh8 {[%clk 0:16:07]} 27... Rxh8 {[%clk 0:21:09]} 28.
Nxd7 {[%clk 0:16:34]} 28... Rh2 {[%clk 0:21:12]} 29. Ng3 {[%clk 0:13:32]} 29...
Kxg6 {[%clk 0:16:39]} 30. Rxd6 {[%clk 0:10:44]} 30... Rg2 {[%clk 0:17:07]} 31.
Nxf6 {[%clk 0:03:01]} 31... Kg5 {[%clk 0:14:36]} 32. Nfh5 {[%clk 0:02:22]} 32...
Kh4 {[%clk 0:15:01]} 33. Rd5 {[%clk 0:01:25]} 33... Rxg3 34. Nxg3 {[%clk
0:01:53]} 34... Kxg3 {[%clk 0:09:42]} 35. e5 {[%clk 0:02:15]} 35... Ng5 {[%clk
0:08:22]} 36. Rd6 {[%clk 0:02:27]} 36... Ne4 {[%clk 0:06:26]} 37. Rd3+ {[%clk
0:00:37]} 37... Kf2 {[%clk 0:06:55]} 38. e6 {[%clk 0:01:00]} 38... g3 {[%clk
0:06:43]} 39. e7 {[%clk 0:01:26]} 39... Nf6 {[%clk 0:07:11]} 40. Rd6 {[%clk
0:00:38]} 40... Ne8 {[%clk 0:07:26]} 41. Rd8 {[%clk 0:01:01]} 41... g2 {[%clk
0:07:26]} 42. Rxe8 {[%clk 0:01:23]} 42... g1=Q+ {[%clk 0:07:40]} 43. Kb2 {[%clk
0:30:04]} 43... Qg6 {[%clk 0:37:47]} 44. Rf8+ {[%clk 0:30:17]} 1-0

[Variant "Standard"]
[Site "Europe Echecs"]